[Event "Early-Titled-Tuesday-Blitz-October-03-2023"]
[Site "Chess.com"]
[Date "2023.10.03"]
[Round "4"]
[White "juancruzarias"]
[Black "slorovel"]
[Result "0-1"]
[WhiteElo "2628"]
[BlackElo "2486"]
[TimeControl "180+1"]
[EndTime "8:39:59 PDT"]
[Termination "slorovel won on time"]

1. d4 {[%clk 0:02:57.9]} 1... Nf6 {[%clk 0:02:56.7]} 2. Nd2 {[%clk 0:02:57.8]}
2... d5 {[%clk 0:02:56.3]} 3. Ngf3 {[%clk 0:02:57.5]} 3... c5 {[%clk 0:02:56.5]}
4. e3 {[%clk 0:02:57.8]} 4... Nc6 {[%clk 0:02:56.3]} 5. dxc5 {[%clk 0:02:53.3]}
5... e5 {[%clk 0:02:55.5]} 6. a3 {[%clk 0:02:49.1]} 6... Bxc5 {[%clk 0:02:54.1]}
7. b4 {[%clk 0:02:48.6]} 7... Bd6 {[%clk 0:02:54.8]} 8. Bb2 {[%clk 0:02:48.5]}
8... e4 {[%clk 0:02:54.3]} 9. Nd4 {[%clk 0:02:48.2]} 9... O-O {[%clk 0:02:53.7]}
10. c4 {[%clk 0:02:48.2]} 10... Nxd4 {[%clk 0:02:51.9]} 11. Bxd4 {[%clk
0:02:47.5]} 11... Be6 {[%clk 0:02:48.2]} 12. Be2 {[%clk 0:02:41.1]} 12... a5
{[%clk 0:02:47.7]} 13. c5 {[%clk 0:02:40.5]} 13... Bc7 {[%clk 0:02:45.2]} 14. h3
{[%clk 0:02:33]} 14... b6 {[%clk 0:02:40.3]} 15. Nb3 {[%clk 0:01:11.8]} 15... a4
{[%clk 0:02:36.8]} 16. Nd2 {[%clk 0:01:11]} 16... bxc5 {[%clk 0:02:37]} 17. bxc5
{[%clk 0:01:07.3]} 17... Nd7 {[%clk 0:02:36.2]} 18. O-O {[%clk 0:01:05.5]} 18...
Qg5 {[%clk 0:02:32.2]} 19. Kh1 {[%clk 0:01:01.9]} 19... Qh4 {[%clk 0:02:23]} 20.
Kg1 {[%clk 0:00:53.7]} 20... Nf6 {[%clk 0:02:05.1]} 21. f4 {[%clk 0:00:46.1]}
21... exf3 {[%clk 0:01:59.6]} 22. Rxf3 {[%clk 0:00:45.6]} 22... Ne4 {[%clk
0:01:58.4]} 23. Nf1 {[%clk 0:00:40.3]} 23... f5 {[%clk 0:01:46.1]} 24. Rb1
{[%clk 0:00:39.2]} 24... f4 {[%clk 0:01:46]} 25. Rb7 {[%clk 0:00:38.3]} 25...
Rac8 {[%clk 0:01:43.2]} 26. Qa1 {[%clk 0:00:32.2]} 26... fxe3 {[%clk 0:01:41.3]}
27. Bxe3 {[%clk 0:00:27.2]} 27... Rxf3 {[%clk 0:01:28.6]} 28. Bxf3 {[%clk
0:00:28.1]} 28... Ng5 {[%clk 0:01:29.2]} 29. Bxg5 {[%clk 0:00:26]} 29... Qxg5
{[%clk 0:01:29]} 30. Qd4 {[%clk 0:00:26.2]} 30... Be5 {[%clk 0:01:25.3]} 31. Qd3
{[%clk 0:00:25.3]} 31... Rxc5 {[%clk 0:01:20.6]} 32. Ra7 {[%clk 0:00:22]} 32...
g6 {[%clk 0:01:03.4]} 33. Rxa4 {[%clk 0:00:20.8]} 33... Rc3 {[%clk 0:00:48.7]}
34. Qd1 {[%clk 0:00:19.5]} 34... Rc1 {[%clk 0:00:47.2]} 35. Qd3 {[%clk
0:00:17.8]} 35... d4 {[%clk 0:00:39.8]} 36. Ra6 {[%clk 0:00:16.9]} 36... Bc4
{[%clk 0:00:38.4]} 37. Qxc4+ {[%clk 0:00:13.2]} 37... Rxc4 {[%clk 0:00:37.6]}
38. Bd5+ {[%clk 0:00:14.1]} 38... Kg7 {[%clk 0:00:36.6]} 39. Bxc4 {[%clk
0:00:15]} 39... Qc1 {[%clk 0:00:32.4]} 40. Bd3 {[%clk 0:00:15]} 40... Qc3 {[%clk
0:00:32.2]} 41. Ra7+ {[%clk 0:00:14.8]} 41... Kh6 {[%clk 0:00:31.9]} 42. Be4
{[%clk 0:00:15]} 42... d3 {[%clk 0:00:32.4]} 43. Rd7 {[%clk 0:00:15.1]} 43...
Bd4+ {[%clk 0:00:29.5]} 44. Kh2 {[%clk 0:00:15]} 44... d2 {[%clk 0:00:28.9]} 45.
Bf3 {[%clk 0:00:08.1]} 45... Qxf3 {[%clk 0:00:28.6]} 46. gxf3 {[%clk 0:00:06.2]}
46... d1=Q {[%clk 0:00:28.2]} 0-1

[Event "Early-Titled-Tuesday-Blitz-October-03-2023"]
[Site "Chess.com"]
[Date "2023.10.03"]
[Round "4"]
[White "Susal_De_Silva"]
[Black "colegiodemadrid"]
[Result "0-1"]
[WhiteElo "2679"]
[BlackElo "2414"]
[TimeControl "180+1"]
[EndTime "8:39:59 PDT"]
[Termination "colegiodemadrid won by resignation"]

1. d4 {[%clk 0:03:00.9]} 1... Nf6 {[%clk 0:02:58.9]} 2. c4 {[%clk 0:03:00.6]}
2... g6 {[%clk 0:02:59.3]} 3. g3 {[%clk 0:03:00.8]} 3... Bg7 {[%clk 0:02:59.7]}
4. Bg2 {[%clk 0:03:01.6]} 4... O-O {[%clk 0:03:00.3]} 5. Nf3 {[%clk 0:03:02.3]}
5... d6 {[%clk 0:03:00.9]} 6. O-O {[%clk 0:03:02.4]} 6... Nc6 {[%clk 0:03:01.4]}
7. d5 {[%clk 0:03:02.2]} 7... Na5 {[%clk 0:03:00.4]} 8. Nbd2 {[%clk 0:03:02.5]}
8... c5 {[%clk 0:02:50.8]} 9. e4 {[%clk 0:03:00.2]} 9... a6 {[%clk 0:02:43.9]}
10. Rb1 {[%clk 0:02:59.3]} 10... b5 {[%clk 0:02:42.3]} 11. b3 {[%clk 0:02:59.4]}
11... Rb8 {[%clk 0:02:41.5]} 12. Qc2 {[%clk 0:02:58.5]} 12... Ng4 {[%clk
0:02:15.6]} 13. Bb2 {[%clk 0:02:54.9]} 13... Bxb2 {[%clk 0:02:11.8]} 14. Rxb2
{[%clk 0:02:55.8]} 14... e5 {[%clk 0:02:06.1]} 15. Ne1 {[%clk 0:02:42.6]} 15...
h5 {[%clk 0:02:02.1]} 16. Nd3 {[%clk 0:02:39.5]} 16... h4 {[%clk 0:01:59.5]} 17.
h3 {[%clk 0:02:37.5]} 17... Nf6 {[%clk 0:01:52.6]} 18. g4 {[%clk 0:02:36.3]}
18... Re8 {[%clk 0:01:36.3]} 19. b4 {[%clk 0:02:30.2]} 19... cxb4 {[%clk
0:01:21.6]} 20. Nxb4 {[%clk 0:02:26.5]} 20... bxc4 {[%clk 0:01:09.5]} 21. Nxc4
{[%clk 0:02:24.9]} 21... Nxc4 {[%clk 0:01:08.8]} 22. Qxc4 {[%clk 0:02:24.8]}
22... Bd7 {[%clk 0:01:09.5]} 23. Rfb1 {[%clk 0:02:21.6]} 23... Bb5 {[%clk
0:01:06.3]} 24. Qc2 {[%clk 0:02:12.6]} 24... Rc8 {[%clk 0:00:58.9]} 25. Qd1
{[%clk 0:02:06.7]} 25... Qa5 {[%clk 0:00:56.1]} 26. a4 {[%clk 0:01:50]} 26...
Bxa4 {[%clk 0:00:44.2]} 27. Qf3 {[%clk 0:01:49.9]} 27... Kg7 {[%clk 0:00:39.3]}
28. Qa3 {[%clk 0:01:35.7]} 28... Rc4 {[%clk 0:00:19.9]} 29. Nc6 {[%clk
0:01:20.4]} 29... Qc5 {[%clk 0:00:18.9]} 30. Qf3 {[%clk 0:01:12.4]} 30... Rc3
{[%clk 0:00:16.6]} 31. Qe2 {[%clk 0:01:07.2]} 31... Bxc6 {[%clk 0:00:16.4]} 32.
dxc6 {[%clk 0:01:08.1]} 32... Qxc6 {[%clk 0:00:16.7]} 33. Kh2 {[%clk 0:01:07.7]}
33... Rc8 {[%clk 0:00:12.8]} 34. Rb6 {[%clk 0:01:07.2]} 34... Qc5 {[%clk
0:00:13.3]} 35. R1b2 {[%clk 0:00:51.1]} 35... a5 {[%clk 0:00:11.6]} 36. R6b5
{[%clk 0:00:48.5]} 36... Qd4 {[%clk 0:00:11.5]} 37. Rxa5 {[%clk 0:00:46]} 37...
Nh7 {[%clk 0:00:09.1]} 38. Rd5 {[%clk 0:00:43.1]} 38... Qa4 {[%clk 0:00:04.4]}
39. Rxd6 {[%clk 0:00:40.1]} 39... Ng5 {[%clk 0:00:04.9]} 40. Rb7 {[%clk
0:00:24.4]} 40... Qa3 {[%clk 0:00:05.4]} 41. Qf1 {[%clk 0:00:13.6]} 41... Qxd6
{[%clk 0:00:03.4]} 0-1

[Event "Early-Titled-Tuesday-Blitz-October-03-2023"]
[Site "Chess.com"]
[Date "2023.10.03"]
[Round "4"]
[White "AsaHoffmann"]
[Black "zajka-molotok"]
[Result "1-0"]
[WhiteElo "2385"]
[BlackElo "2572"]
[TimeControl "180+1"]
[EndTime "8:40:00 PDT"]
[Termination "AsaHoffmann won on time"]

1. d4 {[%clk 0:02:51.9]} 1... d5 {[%clk 0:02:59.2]} 2. Bg5 {[%clk 0:02:48.6]}
2... f6 {[%clk 0:02:55.7]} 3. Bf4 {[%clk 0:02:47]} 3... Nc6 {[%clk 0:02:49.1]}
4. Nf3 {[%clk 0:02:46.7]} 4... g5 {[%clk 0:02:47.8]} 5. Bg3 {[%clk 0:02:46.1]}
5... h5 {[%clk 0:02:47.5]} 6. h3 {[%clk 0:02:45.6]} 6... Bf5 {[%clk 0:02:45.8]}
7. e3 {[%clk 0:02:44.9]} 7... e6 {[%clk 0:02:45.3]} 8. c4 {[%clk 0:02:44.8]}
8... Nge7 {[%clk 0:02:27.9]} 9. Nc3 {[%clk 0:02:44.5]} 9... a6 {[%clk
0:02:22.3]} 10. Qb3 {[%clk 0:02:41.4]} 10... Na5 {[%clk 0:02:11.3]} 11. Qa4+
{[%clk 0:02:39.8]} 11... Nec6 {[%clk 0:01:44.6]} 12. c5 {[%clk 0:02:28.9]} 12...
Qd7 {[%clk 0:01:15.2]} 13. b4 {[%clk 0:02:18]} 13... Nc4 {[%clk 0:01:05.2]} 14.
Bxc4 {[%clk 0:02:10.2]} 14... dxc4 {[%clk 0:01:04.3]} 15. b5 {[%clk 0:02:05.6]}
15... Ne7 {[%clk 0:00:55.8]} 16. Qxc4 {[%clk 0:02:02.6]} 16... axb5 {[%clk
0:00:50.7]} 17. Qxb5 {[%clk 0:01:54.2]} 17... c6 {[%clk 0:00:42.4]} 18. Qb3
{[%clk 0:01:51.9]} 18... Bd3 {[%clk 0:00:37.1]} 19. Kd2 {[%clk 0:01:41.9]} 19...
Ba6 {[%clk 0:00:34.9]} 20. Rhd1 {[%clk 0:01:39.3]} 20... Nf5 {[%clk 0:00:32.8]}
21. Ke1 {[%clk 0:01:36.7]} 21... Nxg3 {[%clk 0:00:31.3]} 22. fxg3 {[%clk
0:01:36.4]} 22... g4 {[%clk 0:00:29.9]} 23. hxg4 {[%clk 0:01:33]} 23... hxg4
{[%clk 0:00:29.9]} 24. Nh4 {[%clk 0:01:33.2]} 24... Bh6 {[%clk 0:00:23]} 25. Ne4
{[%clk 0:01:30.6]} 25... O-O-O {[%clk 0:00:14.4]} 26. Rab1 {[%clk 0:01:16.2]}
26... Qc7 {[%clk 0:00:14.2]} 27. Qb6 {[%clk 0:01:01.9]} 27... f5 {[%clk
0:00:11.5]} 28. Qxc7+ {[%clk 0:00:57.6]} 28... Kxc7 {[%clk 0:00:11.7]} 29. Nd6
{[%clk 0:00:57.4]} 29... Bxe3 {[%clk 0:00:10.8]} 30. Nf7 {[%clk 0:00:54.4]}
30... Bxd4 {[%clk 0:00:10.2]} 31. Nxh8 {[%clk 0:00:50.8]} 31... Bxh8 {[%clk
0:00:08.9]} 32. Rxd8 {[%clk 0:00:49.6]} 32... Kxd8 {[%clk 0:00:09.8]} 33. Ng6
{[%clk 0:00:44]} 33... Bc3+ {[%clk 0:00:08.7]} 34. Kd1 {[%clk 0:00:37.2]} 34...
Kc7 {[%clk 0:00:06.8]} 35. Nf4 {[%clk 0:00:31.4]} 35... e5 {[%clk 0:00:05]} 36.
Ne2 {[%clk 0:00:31.1]} 36... Ba5 {[%clk 0:00:04.5]} 37. Rb3 {[%clk 0:00:25.6]}
37... Bc4 {[%clk 0:00:03.1]} 38. Re3 {[%clk 0:00:25]} 38... e4 {[%clk
0:00:02.8]} 39. a3 {[%clk 0:00:23]} 39... Be6 {[%clk 0:00:02.4]} 40. Nd4 {[%clk
0:00:21.8]} 40... Bd7 {[%clk 0:00:02.2]} 41. Kc2 {[%clk 0:00:20.8]} 41... b6
{[%clk 0:00:01.7]} 42. Nb3 {[%clk 0:00:19.3]} 42... Kb7 {[%clk 0:00:01.3]} 43.
Nxa5+ {[%clk 0:00:18]} 43... bxa5 {[%clk 0:00:01.8]} 44. Kc3 {[%clk 0:00:17.3]}
44... Ka6 {[%clk 0:00:01.9]} 45. a4 {[%clk 0:00:16.9]} 45... Be6 {[%clk
0:00:01.8]} 46. Kd4 {[%clk 0:00:16.5]} 46... Kb7 {[%clk 0:00:01.2]} 47. Re1
{[%clk 0:00:15]} 1-0

[Event "Early-Titled-Tuesday-Blitz-October-03-2023"]
[Site "Chess.com"]
[Date "2023.10.03"]
[Round "4"]
[White "Gyulamiryan-koryun"]
[Black "NowInChess"]
[Result "0-1"]
[WhiteElo "1986"]
[BlackElo "2251"]
[TimeControl "180+1"]
[EndTime "8:40:00 PDT"]
[Termination "NowInChess won by checkmate"]

1. e4 {[%clk 0:02:58.6]} 1... e6 {[%clk 0:02:59.9]} 2. d4 {[%clk 0:02:57.8]}
2... d5 {[%clk 0:03:00.8]} 3. Nd2 {[%clk 0:02:57.2]} 3... h6 {[%clk 0:02:59.8]}
4. Ne2 {[%clk 0:02:54.9]} 4... Nf6 {[%clk 0:02:57.4]} 5. Ng3 {[%clk 0:02:53.9]}
5... c5 {[%clk 0:02:50]} 6. exd5 {[%clk 0:02:52.4]} 6... exd5 {[%clk 0:02:44.3]}
7. dxc5 {[%clk 0:02:52.5]} 7... Bxc5 {[%clk 0:02:41.1]} 8. Bb5+ {[%clk
0:02:52.1]} 8... Nc6 {[%clk 0:02:40.6]} 9. O-O {[%clk 0:02:51.5]} 9... O-O
{[%clk 0:02:36.8]} 10. c3 {[%clk 0:02:46.7]} 10... Be6 {[%clk 0:02:28.3]} 11.
Nf3 {[%clk 0:02:42.3]} 11... Qb6 {[%clk 0:02:03]} 12. Bd3 {[%clk 0:02:26.7]}
12... Ng4 {[%clk 0:01:43]} 13. Qe2 {[%clk 0:02:12.2]} 13... Rfe8 {[%clk
0:01:30.5]} 14. Qc2 {[%clk 0:02:10.5]} 14... a5 {[%clk 0:01:10.6]} 15. a3 {[%clk
0:02:08.4]} 15... a4 {[%clk 0:01:07.3]} 16. Bf4 {[%clk 0:02:02.8]} 16... Na5
{[%clk 0:01:04.9]} 17. h3 {[%clk 0:02:01.7]} 17... Nf6 {[%clk 0:00:55.7]} 18.
Ne5 {[%clk 0:01:58.1]} 18... Nb3 {[%clk 0:00:51.5]} 19. Rad1 {[%clk 0:01:51.4]}
19... d4 {[%clk 0:00:51.3]} 20. c4 {[%clk 0:01:50.3]} 20... Rad8 {[%clk
0:00:45.4]} 21. Bh7+ {[%clk 0:01:36.1]} 21... Nxh7 {[%clk 0:00:43.5]} 22. Ne4
{[%clk 0:01:30.4]} 22... Be7 {[%clk 0:00:33.9]} 23. Nd3 {[%clk 0:01:26.8]} 23...
Nf6 {[%clk 0:00:28.8]} 24. Ng3 {[%clk 0:01:21.4]} 24... Rc8 {[%clk 0:00:24.4]}
25. Ne5 {[%clk 0:01:10.3]} 25... Qc5 {[%clk 0:00:19.1]} 26. Ne4 {[%clk
0:01:08.6]} 26... Nxe4 {[%clk 0:00:18.7]} 27. Qxe4 {[%clk 0:01:08.7]} 27... Bf6
{[%clk 0:00:14.1]} 28. Nd3 {[%clk 0:01:07.9]} 28... Qc6 {[%clk 0:00:12.7]} 29.
Qe2 {[%clk 0:01:05.9]} 29... Qxc4 {[%clk 0:00:12.1]} 30. Be5 {[%clk 0:01:05.2]}
30... Bxe5 {[%clk 0:00:10.9]} 31. Qxe5 {[%clk 0:01:05.4]} 31... Bxh3 {[%clk
0:00:10.1]} 32. Qg3 {[%clk 0:01:04.7]} 32... Be6 {[%clk 0:00:09.4]} 33. Ne5
{[%clk 0:01:03.8]} 33... Qd5 {[%clk 0:00:09]} 34. Nf3 {[%clk 0:01:01.7]} 34...
d3 {[%clk 0:00:08.4]} 35. Nd2 {[%clk 0:00:59.3]} 35... Nxd2 {[%clk 0:00:08.1]}
36. Rxd2 {[%clk 0:00:59.6]} 36... Rcd8 {[%clk 0:00:08.6]} 37. Rfd1 {[%clk
0:00:59.2]} 37... Bf5 {[%clk 0:00:09.2]} 38. Qf4 {[%clk 0:00:57.3]} 38... Qe4
{[%clk 0:00:09.2]} 39. Qc7 {[%clk 0:00:53]} 39... Be6 {[%clk 0:00:07.6]} 40. f3
{[%clk 0:00:51.9]} 40... Qe3+ {[%clk 0:00:06.5]} 41. Kf1 {[%clk 0:00:49.3]}
41... Rd7 {[%clk 0:00:06.8]} 42. Qg3 {[%clk 0:00:47.2]} 42... Bb3 {[%clk
0:00:06.7]} 43. Re1 {[%clk 0:00:40.7]} 43... Qxe1+ {[%clk 0:00:05.8]} 44. Qxe1
{[%clk 0:00:39.9]} 44... Rxe1+ {[%clk 0:00:06.7]} 45. Kxe1 {[%clk 0:00:40]}
45... Re7+ {[%clk 0:00:07.1]} 46. Kf2 {[%clk 0:00:39.2]} 46... Bc4 {[%clk
0:00:07.6]} 47. g4 {[%clk 0:00:38.5]} 47... Re2+ {[%clk 0:00:08.1]} 48. Rxe2
{[%clk 0:00:37.9]} 48... dxe2 {[%clk 0:00:09]} 49. Ke1 {[%clk 0:00:38.3]} 49...
g6 {[%clk 0:00:09.5]} 50. Kd2 {[%clk 0:00:38.4]} 50... h5 {[%clk 0:00:10.4]} 51.
Ke1 {[%clk 0:00:33.8]} 51... h4 {[%clk 0:00:09.9]} 52. Kf2 {[%clk 0:00:32]}
52... h3 {[%clk 0:00:10.5]} 53. Ke1 {[%clk 0:00:32.1]} 53... h2 {[%clk
0:00:10.4]} 54. Kf2 {[%clk 0:00:32.8]} 54... h1=Q {[%clk 0:00:10.8]} 55. f4
{[%clk 0:00:32.4]} 55... e1=Q# {[%clk 0:00:10.4]} 0-1

[Event "Early-Titled-Tuesday-Blitz-October-03-2023"]
[Site "Chess.com"]
[Date "2023.10.03"]
[Round "4"]
[White "Kgutierrez95"]
[Black "Dr_crypt"]
[Result "1-0"]
[WhiteElo "2177"]
[BlackElo "2420"]
[TimeControl "180+1"]
[EndTime "8:40:01 PDT"]
[Termination "Kgutierrez95 won by resignation"]

1. e4 {[%clk 0:02:57.7]} 1... d5 {[%clk 0:02:59.8]} 2. exd5 {[%clk 0:02:56.8]}
2... Qxd5 {[%clk 0:03:00.7]} 3. Nc3 {[%clk 0:02:56.7]} 3... Qd6 {[%clk
0:03:01.4]} 4. d4 {[%clk 0:02:55.2]} 4... c6 {[%clk 0:03:02.2]} 5. Be2 {[%clk
0:02:52]} 5... Nf6 {[%clk 0:03:01.3]} 6. Nf3 {[%clk 0:02:51.7]} 6... Bg4 {[%clk
0:03:00.7]} 7. h3 {[%clk 0:02:46.4]} 7... Bxf3 {[%clk 0:03:00.7]} 8. Bxf3 {[%clk
0:02:44.1]} 8... Nbd7 {[%clk 0:03:01.4]} 9. Bd2 {[%clk 0:02:40.5]} 9... e6
{[%clk 0:03:01.3]} 10. Ne2 {[%clk 0:02:30.8]} 10... e5 {[%clk 0:02:51.8]} 11.
dxe5 {[%clk 0:02:09.8]} 11... Nxe5 {[%clk 0:02:52.7]} 12. Bf4 {[%clk 0:02:09.6]}
12... Nxf3+ {[%clk 0:02:51.8]} 13. gxf3 {[%clk 0:02:07.1]} 13... Qxd1+ {[%clk
0:02:47.3]} 14. Rxd1 {[%clk 0:02:08]} 14... Bc5 {[%clk 0:02:36.8]} 15. Bd6
{[%clk 0:02:02]} 15... Bxd6 {[%clk 0:02:35.8]} 16. Rxd6 {[%clk 0:02:02.1]} 16...
Ke7 {[%clk 0:02:36.7]} 17. Rd3 {[%clk 0:02:01.7]} 17... Rad8 {[%clk 0:02:35.3]}
18. Re3+ {[%clk 0:01:59.6]} 18... Kd7 {[%clk 0:02:34]} 19. Nc3 {[%clk
0:01:57.8]} 19... Rhe8 {[%clk 0:02:33.7]} 20. O-O {[%clk 0:01:56.3]} 20... Kc7
{[%clk 0:02:26.6]} 21. Rxe8 {[%clk 0:01:55.3]} 21... Rxe8 {[%clk 0:02:26.2]} 22.
Rd1 {[%clk 0:01:55]} 22... Re5 {[%clk 0:02:24.9]} 23. Kg2 {[%clk 0:01:52.8]}
23... h5 {[%clk 0:02:22.9]} 24. f4 {[%clk 0:01:49.6]} 24... Ra5 {[%clk
0:02:18.2]} 25. a4 {[%clk 0:01:45.4]} 25... h4 {[%clk 0:02:08.3]} 26. Kf3 {[%clk
0:01:44.8]} 26... Rf5 {[%clk 0:02:06]} 27. Ke3 {[%clk 0:01:33.4]} 27... g6
{[%clk 0:02:05.2]} 28. Rd4 {[%clk 0:01:18.9]} 28... Nh5 {[%clk 0:01:48.2]} 29.
Re4 {[%clk 0:01:11.1]} 29... Kd7 {[%clk 0:01:38.2]} 30. Rd4+ {[%clk 0:01:10.1]}
30... Ke7 {[%clk 0:01:34.8]} 31. Rb4 {[%clk 0:01:08.2]} 31... b6 {[%clk
0:01:34.2]} 32. Rc4 {[%clk 0:01:07.4]} 32... Kd6 {[%clk 0:01:16.5]} 33. Rd4+
{[%clk 0:01:06.1]} 33... Kc7 {[%clk 0:01:16.4]} 34. Re4 {[%clk 0:01:05.9]} 34...
Nf6 {[%clk 0:01:12.4]} 35. Re7+ {[%clk 0:01:02.7]} 35... Nd7 {[%clk 0:01:13]}
36. b4 {[%clk 0:00:48.4]} 36... Kd8 {[%clk 0:01:07.3]} 37. Re4 {[%clk
0:00:46.9]} 37... a6 {[%clk 0:01:03.3]} 38. Rd4 {[%clk 0:00:41.8]} 38... Kc7
{[%clk 0:00:59.1]} 39. Ne4 {[%clk 0:00:27.6]} 39... a5 {[%clk 0:00:52.7]} 40.
Nd6 {[%clk 0:00:23.9]} 40... Rd5 {[%clk 0:00:45.7]} 41. Rxd5 {[%clk 0:00:21.8]}
41... cxd5 {[%clk 0:00:45.9]} 42. Nxf7 {[%clk 0:00:16.7]} 42... axb4 {[%clk
0:00:45.9]} 43. Kd4 {[%clk 0:00:16.6]} 43... Kc6 {[%clk 0:00:44.4]} 44. Ne5+
{[%clk 0:00:13.7]} 44... Nxe5 {[%clk 0:00:43.8]} 45. fxe5 {[%clk 0:00:14.6]}
45... g5 {[%clk 0:00:42.1]} 46. f3 {[%clk 0:00:14.4]} 1-0

[Event "Early-Titled-Tuesday-Blitz-October-03-2023"]
[Site "Chess.com"]
[Date "2023.10.03"]
[Round "4"]
[White "AniJak"]
[Black "Doudou2015"]
[Result "1-0"]
[WhiteElo "2374"]
[BlackElo "2178"]
[TimeControl "180+1"]
[EndTime "8:40:01 PDT"]
[Termination "AniJak won by resignation"]

1. e4 {[%clk 0:03:00.9]} 1... c5 {[%clk 0:02:59.4]} 2. Nf3 {[%clk 0:03:00.4]}
2... Nc6 {[%clk 0:02:59.6]} 3. d4 {[%clk 0:03:00.4]} 3... cxd4 {[%clk
0:02:59.8]} 4. Nxd4 {[%clk 0:03:01.2]} 4... e5 {[%clk 0:03:00.3]} 5. Nb5 {[%clk
0:03:00.6]} 5... a6 {[%clk 0:03:00.8]} 6. Nd6+ {[%clk 0:03:00]} 6... Bxd6 {[%clk
0:03:01.2]} 7. Qxd6 {[%clk 0:02:59.9]} 7... Qf6 {[%clk 0:03:01.9]} 8. Qd2 {[%clk
0:02:57.6]} 8... Qg6 {[%clk 0:02:58.7]} 9. Nc3 {[%clk 0:02:52.7]} 9... Nge7
{[%clk 0:02:57.8]} 10. Qg5 {[%clk 0:02:43.6]} 10... d5 {[%clk 0:02:54.8]} 11.
exd5 {[%clk 0:02:35.9]} 11... Nb4 {[%clk 0:02:46.7]} 12. Qxg6 {[%clk 0:02:19.9]}
12... hxg6 {[%clk 0:02:47.6]} 13. d6 {[%clk 0:02:17.9]} 13... Nxc2+ {[%clk
0:02:45.6]} 14. Kd2 {[%clk 0:02:16.1]} 14... Nxa1 {[%clk 0:02:46.5]} 15. dxe7
{[%clk 0:02:15.7]} 15... Kxe7 {[%clk 0:02:47.3]} 16. Nd5+ {[%clk 0:02:03.6]}
16... Kd8 {[%clk 0:02:26.9]} 17. Nb6 {[%clk 0:01:57.9]} 17... Rb8 {[%clk
0:02:26.6]} 18. b3 {[%clk 0:01:56.9]} 18... Bf5 {[%clk 0:02:23.4]} 19. Be2
{[%clk 0:01:41.2]} 19... Nc2 {[%clk 0:02:20.3]} 20. g4 {[%clk 0:01:41]} 20...
Kc7 {[%clk 0:01:40]} 21. Nd5+ {[%clk 0:01:38.7]} 21... Kd6 {[%clk 0:01:36.8]}
22. gxf5 {[%clk 0:01:35.6]} 22... Kxd5 {[%clk 0:01:36.5]} 23. Kxc2 {[%clk
0:01:34.3]} 23... Rbc8+ {[%clk 0:01:32.4]} 24. Bc4+ {[%clk 0:01:31.7]} 24... Ke4
{[%clk 0:01:27.5]} 25. Re1+ {[%clk 0:01:20.4]} 25... Kxf5 {[%clk 0:01:26.4]} 26.
Kb2 {[%clk 0:01:14.5]} 26... Rxh2 {[%clk 0:01:23]} 27. Be3 {[%clk 0:01:13.4]}
27... f6 {[%clk 0:01:13.9]} 28. Rd1 {[%clk 0:01:11.3]} 28... g5 {[%clk
0:00:59.7]} 29. Rd7 {[%clk 0:01:07.2]} 29... b5 {[%clk 0:00:48.1]} 30. Bd3+
{[%clk 0:00:59.3]} 30... Kg4 {[%clk 0:00:35.6]} 31. Rxg7 {[%clk 0:00:56.5]}
31... Rd8 {[%clk 0:00:30.4]} 32. Be2+ {[%clk 0:00:54.4]} 32... Kf5 {[%clk
0:00:29.8]} 33. Ra7 {[%clk 0:00:47.1]} 33... Rd6 {[%clk 0:00:28.5]} 34. Kc3
{[%clk 0:00:43.4]} 34... e4 {[%clk 0:00:26.8]} 35. Bc5 {[%clk 0:00:37.1]} 35...
Rc6 {[%clk 0:00:25.5]} 36. Kb4 {[%clk 0:00:34]} 36... Ke6 {[%clk 0:00:24.6]} 37.
a4 {[%clk 0:00:29.8]} 37... bxa4 {[%clk 0:00:22.6]} 38. bxa4 {[%clk 0:00:30.2]}
38... Rxc5 {[%clk 0:00:19.1]} 39. Kxc5 {[%clk 0:00:29.7]} 39... Rxf2 {[%clk
0:00:19.8]} 40. Bxa6 {[%clk 0:00:30.1]} 40... g4 {[%clk 0:00:18.2]} 41. a5
{[%clk 0:00:28.5]} 41... g3 {[%clk 0:00:18.2]} 42. Rg7 {[%clk 0:00:23.5]} 42...
g2 {[%clk 0:00:17.4]} 43. Bc4+ {[%clk 0:00:18.1]} 43... Ke5 {[%clk 0:00:17.6]}
44. a6 {[%clk 0:00:18]} 44... Rf3 {[%clk 0:00:16.2]} 45. Rxg2 {[%clk 0:00:16.1]}
45... Rc3 {[%clk 0:00:15.2]} 46. a7 {[%clk 0:00:15.7]} 46... Ra3 {[%clk
0:00:14.3]} 47. Ra2 {[%clk 0:00:16.2]} 47... Rxa2 {[%clk 0:00:14.2]} 48. Bxa2
{[%clk 0:00:17.1]} 48... e3 {[%clk 0:00:14.4]} 49. a8=Q {[%clk 0:00:17.1]} 49...
e2 {[%clk 0:00:14.3]} 50. Qe8+ {[%clk 0:00:16.5]} 50... Kf4 {[%clk 0:00:15.2]}
51. Qxe2 {[%clk 0:00:17]} 51... f5 {[%clk 0:00:16]} 52. Qf1+ {[%clk 0:00:17.3]}
52... Kg5 {[%clk 0:00:16.9]} 53. Kd4 {[%clk 0:00:16.4]} 53... Kf6 {[%clk
0:00:17.8]} 54. Qf4 {[%clk 0:00:15.9]} 1-0